Cogmind - Beta 10.1 @@@ ROGUE MODE // 2021.04.23 @ 14:31:20 Player: Farfid Result: Destroyed by H-66 Slayer with Gauss Rifle Performance ------------- Evolutions (4) 2000 Regions Visited (13) 2600 Robots Destroyed (104) 520 Value Destroyed (3672) 3672 Prototype IDs (24) 480 Alien Tech Used (1) 200 Bonus (852) 852 TOTAL SCORE: 10324 Bonus ------- Follower Combat Kills 707 Met Data Miner 300 Friendly Fire -155 Cogmind --------- Core Integrity 0/850 Matter 290/300 Energy 220/220 System Corruption 0% Temperature Cool (0) Movement Rolling (120) Ox2 Location -6/Lower Caves Parts ------- > --- POWER (2) -------- Light Angular Momentum Engine Micro Fission Core > --- PROPULSION (4) --- Carbon-fiber Leg Flexi-carbon Leg Armored Huge Wheel > --- UTILITY (6) ------ Advanced Heat Sink Large Storage Unit High-capacity Storage Unit Enhanced Optical Array Advanced Targeting Computer Thief Drone Bay (3/3) > --- WEAPON (4) ------- Heavy Laser Heavy Laser EM Pulse Cannon Makeshift Sword > --- INVENTORY (18) --- Light Angular Momentum Engine Power Amplifier Large Storage Unit High-capacity Storage Unit Compact Battery (300) Matter Compressor (250) Long-range Terrain Scanner 0b10 Decoder Chip [Generic] 0b10 Decoder Chip [Skirmisher] Precision Energy Filter Improved Transmission Jammer Improved Propulsion Shielding Dynamic Insulation System Guided EMP Blaster Micro-nuke Launcher Makeshift Sword Fire Trap Peak State ------------ > --- POWER ------------ Light Angular Momentum Engine Micro Fission Core > --- PROPULSION ------- Carbon-fiber Leg Flexi-carbon Leg Armored Huge Wheel > --- UTILITY ---------- Advanced Heat Sink Large Storage Unit High-capacity Storage Unit Enhanced Optical Array Advanced Targeting Computer Thief Drone Bay > --- WEAPON ----------- Heavy Laser Heavy Laser EM Pulse Cannon Makeshift Sword > --- INVENTORY -------- Light Angular Momentum Engine Power Amplifier Large Storage Unit High-capacity Storage Unit Compact Battery Matter Compressor Long-range Terrain Scanner 0b10 Decoder Chip [Generic] 0b10 Decoder Chip [Skirmisher] Precision Energy Filter Improved Transmission Jammer Improved Propulsion Shielding Dynamic Insulation System Guided EMP Blaster Micro-nuke Launcher Makeshift Sword Fire Trap [Rating: 71] Favorites ----------- Power Enhanced Nuclear Core Engine Improved Deuterium Engine Power Core Enhanced Nuclear Core Propulsion Armored Wheel Treads Medium Treads Leg Carbon-fiber Leg Wheel Armored Wheel Utility High-capacity Storage Unit Device Disposable Heat Sink Storage High-capacity Storage Unit Processor Advanced Targeting Computer Protection Improved Medium Armor Plating Weapon Gauss Rifle Energy Gun Advanced Beam Rifle Energy Cannon Advanced Beam Cannon Ballistic Gun Gauss Rifle Ballistic Cannon Flak Cannon Launcher Scatter Rocket Array Impact Weapon Powered Hammer Slashing Weapon Chainsword Build | -11 -10 -10 -10 -9 -8 -7 -7 -7 -7 -6 -6 -6 -6 ------- Run | Scr Mat Min Exi Min Mat Fac Low Low Dat Pro Fac Low Low Slots Evolved 8 | . . . . . 4 2 . . . . 2 . . Power . | . . . . . . . . . . . . . . Propulsion 2 | . . . . . 1 . . . . . 1 . . Utility 4 | . . . . . 2 2 . . . . . . . Weapon 2 | . . . . . 1 . . . . . 1 . . Parts Attached 152 | 6 9 3 5 2 21 14 7 4 . 22 7 20 32 Power 17 | 1 1 . . . 3 2 . 1 . 3 1 1 4 Engine 9 | 1 . . . . 2 1 . . . 3 . 1 1 Core 8 | . 1 . . . 1 1 . 1 . . 1 . 3 Reactor . | . . . . . . . . . . . . . . Propulsion 27 | 2 2 . . . 5 3 . . . 3 1 3 8 Treads 2 | . . . . . . . . . . . . 1 1 Leg 7 | 2 . . . . . . . . . . . . 5 Wheel 18 | . 2 . . . 5 3 . . . 3 1 2 2 Hover . | . . . . . . . . . . . . . . Flight . | . . . . . . . . . . . . . . Utility 45 | 1 4 2 5 2 6 7 3 . . 1 3 4 7 Device 15 | . 1 1 . 1 1 2 2 . . 1 1 2 3 Storage 6 | 1 1 . 1 . 1 . . . . . 1 . 1 Processor 4 | . . . . . 2 1 . . . . 1 . . Hackware . | . . . . . . . . . . . . . . Protection 20 | . 2 1 4 1 2 4 1 . . . . 2 3 Artifact . | . . . . . . . . . . . . . . Weapon 63 | 2 2 1 . . 7 2 4 3 . 15 2 12 13 Energy Gun 10 | 1 . . . . 4 1 . . . . 1 . 3 Energy Cannon 15 | . . . . . 1 . . . . 4 . 7 3 Ballistic Gun 17 | 1 2 1 . . 2 1 2 2 . 3 1 2 . Ballistic Cannon 4 | . . . . . . . . . . 4 . . . Launcher 13 | . . . . . . . 1 1 . 4 . 3 4 Special Weapon . | . . . . . . . . . . . . . . Impact Weapon 2 | . . . . . . . 1 . . . . . 1 Slashing Weapon 2 | . . . . . . . . . . . . . 2 Piercing Weapon . | . . . . . . . . . . . . . . Special Melee Weapon . | . . . . . . . . . . . . . . Unidentified Prototypes 11 | . . 1 . 1 3 2 1 . . 1 1 1 . Parts Lost 26 | . 1 . . . 4 2 . . . 2 1 2 14 Power 4 | . . . . . 1 . . . . . . 1 2 Propulsion 7 | . . . . . 1 . . . . . . 1 5 Utility 5 | . . . . . 1 . . . . . 1 . 3 Weapon 10 | . 1 . . . 1 2 . . . 2 . . 4 Highest Loss Streak 14 | . 1 . . . 2 1 . . . 1 1 1 14 Average Slot Usage (%) 97 | . 96 100 100 100 99 99 98 99 100 99 99 95 85 Engine 2 | . 9 . . . 3 4 . . . 5 2 1 4 Core 8 | . 4 14 14 14 5 2 7 13 14 8 9 7 6 Leg 1 | . 4 . . . . . . . . . . . 14 Wheel 22 | . 22 28 28 28 26 22 22 21 21 21 25 20 3 Device 9 | . 3 . . . 9 14 14 14 14 14 9 6 5 Storage 13 | . 14 14 14 14 13 15 14 14 14 14 12 12 13 Processor 6 | . . . . . 9 7 7 7 7 7 8 12 12 Protection 7 | . 8 13 14 14 4 6 7 7 7 7 5 5 3 Energy Gun 4 | . 5 . . . 8 9 7 2 . . 2 6 7 Energy Cannon 4 | . . . . . 3 7 7 7 7 5 . 5 3 Ballistic Gun 11 | . 21 28 28 28 14 5 6 10 14 8 9 9 1 Ballistic Cannon 1 | . . . . . . . . . . 4 12 2 . Naked Turns . | . . . . . . . . . . . . . . Heaviest Build 97 | 12 26 26 50 50 66 78 77 95 93 97 97 93 96 Greatest Support 65 | 20 24 24 24 24 36 36 36 36 36 36 48 48 65 Greatest Overweight (x) 6 | 3 1 1 2 2 2 2 2 2 2 2 2 2 6 Average Overweight (x) 1 | 1 . 1 1 2 1 1 1 2 2 2 1 1 1 Largest Inventory Capacity 18 | 6 8 8 12 12 18 18 18 18 18 18 18 18 18 Average Capacity 16 | 5 6 8 9 12 15 18 18 18 18 18 18 18 18 Most Carried 18 | 3 6 8 9 12 18 18 18 18 18 18 18 18 18 Average Carried 15 | . 5 7 8 10 14 17 18 18 18 17 17 17 17 Final Capacity 18 | 6 8 8 12 12 18 18 18 18 18 18 18 18 18 Final Carried 18 | . 6 8 9 12 18 18 18 18 18 18 18 18 18 Class Distribution -------------------- 51% | Gunner 23% | Mutant 13% | Scavenger-Mutant 7% | Scavenger-Gunner 3% | Derelict-Gunner Dominant Class ---------------- Mutant | -10/Materials Mutant | -10/Mines Mutant | -10/Exiles Mutant | -9/Mines Gunner | -8/Materials Gunner | -7/Factory Gunner | -7/Lower Caves Gunner | -7/Lower Caves Gunner | -7/Data Miner Scavenger-Mutant | -6/Proximity Caves Scavenger-Gunner | -6/Factory Scavenger-Mutant | -6/Lower Caves Mutant | -6/Lower Caves Resources | -11 -10 -10 -10 -9 -8 -7 -7 -7 -7 -6 -6 -6 -6 ----------- Run | Scr Mat Min Exi Min Mat Fac Low Low Dat Pro Fac Low Low Matter Collected 3546 | 174 282 145 193 96 466 147 81 102 . 536 384 479 461 Remotely . | . . . . . . . . . . . . . . Salvage Created 4099 | . 358 118 . 159 688 159 109 229 . 937 268 517 557 Parts 192 | . 24 4 . 13 34 7 6 20 . 36 9 25 14 Haulers Intercepted 4 | . 2 . . . 1 . . . . . . 1 . Recyclers Shooed 4 | . . 1 . 1 . . . . . . 2 . . Parts Field Recycled . | . . . . . . . . . . . . . . Retrieved Matter . | . . . . . . . . . . . . . . Parts Self-Destructed 92 | . . . . . . . 23 22 . 31 . 7 9 Prevented 33 | . . . . . . . . . . 17 . 12 4 Kills | -11 -10 -10 -10 -9 -8 -7 -7 -7 -7 -6 -6 -6 -6 ------- Run | Scr Mat Min Exi Min Mat Fac Low Low Dat Pro Fac Low Low Combat Hostiles Destroyed 83 | . 6 . . 4 13 3 5 5 . 15 6 13 13 Melee 2 | . . . . . . . . . . . . . 2 Guns 29 | . 5 . . 4 12 1 1 1 . 3 1 1 . Cannons 16 | . . . . . 1 2 . 2 . 5 4 1 1 AOE 28 | . 1 . . . . . 4 2 . 5 . 7 9 Classes Destroyed 18 | . 4 1 . 1 2 . 1 1 . 6 1 . 1 Worker 9 | . 2 2 . 2 2 . . . . . 1 . . Tunneler 1 | . . . . . . . . . . . 1 . . Hauler 4 | . 2 . . . 1 . . . . . . 1 . Recycler 2 | . . 1 . 1 . . . . . . . . . Minesweeper 1 | . . . . . . . . . . 1 . . . Mechanic 1 | . . . . . . . . . . . . . 1 Drone 1 | . . . . . . . . . . 1 . . . Watcher 1 | . 1 . . . . . . . . . . . . Swarmer 21 | . . . . 4 2 . 4 2 . 1 . 7 1 Grunt 32 | . 6 . . . 4 . . 1 . 6 3 4 8 Brawler 4 | . . . . . . . . . . 1 1 . 2 Duelist 2 | . . . . . . . 1 . . . . . 1 Protector 2 | . . . . . . . . . . 2 . . . Sentry 12 | . . . . . 6 1 . . . 1 2 1 1 Demolisher 3 | . . . . . . . . . . 3 . . . Hunter 6 | . . . . . 1 2 . 2 . . . 1 . Behemoth 1 | . . . . . . . . . . 1 . . . Samaritan 1 | . . . . . . . . 1 . . . . . Best Kill Streak 9 | . 6 1 . 3 3 1 4 2 . 3 5 4 9 Combat Bots Only 8 | . 2 . . 3 2 1 4 2 . 3 3 4 8 Max Kills in Single Turn 4 | . 2 1 . 2 1 1 2 2 . 2 1 3 4 Gunslinging 1 | . 1 . . 1 . . . . . . . . . Exploded 4 | . 1 . . . . . 2 2 . 2 . 3 4 Melee 1 | . . . . . . . . . . . . . 1 Uniques/NPCs Destroyed . | . . . . . . . . . . . . . . Combat | -11 -10 -10 -10 -9 -8 -7 -7 -7 -7 -6 -6 -6 -6 -------- Run | Scr Mat Min Exi Min Mat Fac Low Low Dat Pro Fac Low Low Damage Taken 5881 | . 324 . . 54 833 292 151 133 . 567 464 584 2479 Core 1131 | . 81 . . . 137 20 13 . . 19 24 30 807 Absorbed by Shields . | . . . . . . . . . . . . . . Core Remaining (%) 83 | 100 . . . 67 75 . . . . 92 . . . Volleys Fired 224 | . 32 8 . 11 41 10 6 8 . 51 16 27 14 Largest 4 | . 2 2 . 2 3 3 3 3 . 3 4 2 3 Hottest 190 | . 60 46 . 46 190 190 157 157 . 138 176 129 125 Shots Fired 506 | . 55 16 . 22 122 30 14 22 . 103 59 47 16 Gun 328 | . 55 16 . 22 118 20 8 14 . 25 28 20 2 Cannon 143 | . . . . . 4 10 4 7 . 66 31 20 1 Launcher 35 | . . . . . . . 2 1 . 12 . 7 13 Special . | . . . . . . . . . . . . . . Kinetic 289 | . 51 16 . 22 92 6 4 9 . 32 55 . 2 Thermal 78 | . . . . . 30 24 8 12 . 4 . . . Explosive 28 | . . . . . . . 2 1 . 12 . 7 6 Electromagnetic 111 | . 4 . . . . . . . . 55 4 40 8 Robot Hit Streak 13 | . 9 3 . 5 11 12 8 6 . 12 11 13 5 Robot Miss Streak 7 | . 3 5 . 3 2 1 2 2 . 7 7 2 . Penetration Max 1 | . . . . . . . . . . 1 1 . . Secondary Targets 4 | . 1 . . 2 1 . . . . . . . . Max Gunslinging Chain 1 | . 1 . . 1 1 . . . . . . . . Shots Hit Robots 343 | . 31 8 . 12 83 22 10 12 . 64 46 34 21 Core Hits 208 | . 16 4 . 8 33 7 11 9 . 44 37 15 24 Critical Hits 7 | . . . . . 2 1 . 2 . 2 . . . Critical Kills 4 | . . . . . . 1 . 2 . 1 . . . Critical Parts Destroyed 2 | . . . . . 2 . . . . . . . . Melee Attacks 22 | . . . . . . . 1 . . . . . 21 Impact 22 | . . . . . . . 1 . . . . . 21 Slashing . | . . . . . . . . . . . . . . Piercing . | . . . . . . . . . . . . . . Sneak Attacks . | . . . . . . . . . . . . . . Combat Hostiles . | . . . . . . . . . . . . . . Follow-up Attacks . | . . . . . . . . . . . . . . Damage Inflicted 11156 | . 608 137 . 197 1316 450 473 322 . 2414 1167 1742 2330 Guns 3793 | . 436 137 . 197 1255 285 145 96 . 365 472 405 . Cannons 2730 | . . . . . 61 165 83 121 . 1110 695 470 25 Explosions 4260 | . 172 . . . . . 245 105 . 939 . 867 1932 Melee 373 | . . . . . . . . . . . . . 373 Ramming . | . . . . . . . . . . . . . . Kinetic 3439 | . 396 137 . 197 950 65 85 36 . 455 1118 . . Thermal 1365 | . 172 . . . 366 385 143 181 . 118 . . . Explosive 3791 | . . . . . . . 245 105 . 888 . 867 1686 Electromagnetic 2188 | . 40 . . . . . . . . 953 49 875 271 Impact 373 | . . . . . . . . . . . . . 373 Slashing . | . . . . . . . . . . . . . . Piercing . | . . . . . . . . . . . . . . Highest Corruption . | . . . . . . . . . . . . . . Average Corruption . | . . . . . . . . . . . . . . Corruption Purged . | . . . . . . . . . . . . . . Overload Shots . | . . . . . . . . . . . . . . Overflow Damage 212 | . . . . . . . . . . 28 . 74 110 Projectiles 33 | . . . . . . . . . . 28 . 5 . Explosions 159 | . . . . . . . . . . . . 69 90 Melee 20 | . . . . . . . . . . . . . 20 Knockbacks 6 | . . . . . . . . . . 4 2 . . Impact . | . . . . . . . . . . . . . . Kinetic 6 | . . . . . . . . . . 4 2 . . Secondary . | . . . . . . . . . . . . . . Self-Inflicted Damage 98 | . . . . . . . . . . . . 19 79 Shots 3 | . . . . . . . . . . . . 1 2 Rammed . | . . . . . . . . . . . . . . Targets Rammed . | . . . . . . . . . . . . . . Kicked . | . . . . . . . . . . . . . . Crushed . | . . . . . . . . . . . . . . Highest Temperature 231 | . 85 15 . . 193 197 187 195 . 168 209 231 25 Average Temperature 62 | . 33 15 . . 54 101 87 78 . 43 84 78 9 Received Heat Transfer 1659 | . 186 . . . 315 24 9 9 . 135 147 129 705 Effects 3 | . . . . . . . . . . . . 3 . Interference 3 | . . . . . . . . . . . . 3 . Siege Activations . | . . . . . . . . . . . . . . Robots Corrupted 9 | . . . . . . . . . . 3 . 5 1 Combat Hostiles 7 | . . . . . . . . . . 2 . 4 1 Parts Fried 19 | . . . . . . . . . . 8 . 8 3 Impact Corruptions 1 | . . . . . . . . . . . . . 1 Robots Melted . | . . . . . . . . . . . . . . Combat Hostiles . | . . . . . . . . . . . . . . Parts Melted 5 | . . . . . . 2 2 . . 1 . . . Heat Transferred 2396 | . 150 . . . 814 703 259 333 . 137 . . . Parts Sabotaged . | . . . . . . . . . . . . . . Parts Stolen . | . . . . . . . . . . . . . . Parts Stripped . | . . . . . . . . . . . . . . Power Chain Reactions 3 | . 2 . . . . . . . . 1 . . . Missiles Intercepted . | . . . . . . . . . . . . . . Alert | -11 -10 -10 -10 -9 -8 -7 -7 -7 -7 -6 -6 -6 -6 ------- Run | Scr Mat Min Exi Min Mat Fac Low Low Dat Pro Fac Low Low Peak Influence 214 | . 144 63 . 120 210 114 . . . . 214 . . Initial 92 | . . 43 . . 46 30 . . . . 92 . . Average 79 | . 49 55 . 60 120 52 . . . . 111 . . Maximum Alert Level 1 | . . . . . 1 . . . . . 1 . . Low Security (%) 93 | 100 100 100 . 100 86 100 . . . . 83 . . Level 1 6 | . . . . . 13 . . . . . 16 . . Level 2 . | . . . . . . . . . . . . . . Level 3 . | . . . . . . . . . . . . . . Level 4 . | . . . . . . . . . . . . . . Level 5 . | . . . . . . . . . . . . . . High Security . | . . . . . . . . . . . . . . Max Security . | . . . . . . . . . . . . . . Squads Dispatched 13 | . 3 . . . 3 3 . . . . 3 . 1 Investigation 4 | . 1 . . . 1 2 . . . . . . . Extermination 1 | . . . . . . 1 . . . . . . . Reinforcement 4 | . 2 . . . 2 . . . . . . . . Assault 1 | . . . . . . . . . . . . . 1 Garrison 3 | . . . . . . . . . . . 3 . . Intercept . | . . . . . . . . . . . . . . Construction Impeded 1 | . . . . . 1 . . . . . . . . Haulers Reinforced . | . . . . . . . . . . . . . . Stealth | -11 -10 -10 -10 -9 -8 -7 -7 -7 -7 -6 -6 -6 -6 --------- Run | Scr Mat Min Exi Min Mat Fac Low Low Dat Pro Fac Low Low Distress Signals 16 | . 1 . . . 1 . . . . 14 . . . Communications Jammed . | . . . . . . . . . . . . . . Distress Signals . | . . . . . . . . . . . . . . Times Spotted 140 | . 15 . . 5 21 5 13 9 . 24 11 18 19 Peak Tracking Total 9 | . 5 . . 4 3 1 9 4 . 4 5 5 9 Tactical Retreats 12 | . 3 . . 1 1 . . 1 . . 2 3 1 Traps | -11 -10 -10 -10 -9 -8 -7 -7 -7 -7 -6 -6 -6 -6 ------- Run | Scr Mat Min Exi Min Mat Fac Low Low Dat Pro Fac Low Low Traps Triggered 9 | . . . . . 1 6 . . . . 2 . . Indirectly . | . . . . . . . . . . . . . . Trap Hack Attempts . | . . . . . . . . . . . . . . Triggered . | . . . . . . . . . . . . . . Disarmed 1 | . . . . . 1 . . . . . . . . Reprogrammed . | . . . . . . . . . . . . . . Reused 2 | . . . . . . . . . . . 1 1 . Traps Extracted . | . . . . . . . . . . . . . . Installed 4 | . . . 1 . . . . . . 1 1 1 . Triggered 2 | . . . . . . . . . . . 1 1 . Exploded 1 | . . . . . . . . . . 1 . . . Machines | -11 -10 -10 -10 -9 -8 -7 -7 -7 -7 -6 -6 -6 -6 ---------- Run | Scr Mat Min Exi Min Mat Fac Low Low Dat Pro Fac Low Low Machines Disabled 7 | . 1 . . . . . . . . 4 . . 2 Max in Single Turn 2 | . 1 . . . . . . . . 1 . . 2 Machines Sabotaged . | . . . . . . . . . . . . . . Garrisons Compromised . | . . . . . . . . . . . . . . Overloaded Fab Kills . | . . . . . . . . . . . . . . Fab Network Shutdowns . | . . . . . . . . . . . . . . Hacking | -11 -10 -10 -10 -9 -8 -7 -7 -7 -7 -6 -6 -6 -6 --------- Run | Scr Mat Min Exi Min Mat Fac Low Low Dat Pro Fac Low Low Machines Accessed 24 | . 2 2 2 . 3 6 . 1 4 . 3 1 . Terminals 11 | . 2 1 . . 3 3 . 1 . . 1 . . Fabricators 3 | . . . . . . 2 . . . . 1 . . Repair Stations . | . . . . . . . . . . . . . . Recycling Units 1 | . . . . . . 1 . . . . . . . Scanalyzers . | . . . . . . . . . . . . . . Garrison Access 1 | . . . . . . . . . . . 1 . . Total Hacks 71 | . 11 3 2 . 13 8 . 1 28 . 4 1 . Successful 53 | . 7 2 2 . 11 1 . 1 28 . . 1 . Failed 18 | . 4 1 . . 2 7 . . . . 4 . . Catastrophic 7 | . 1 1 . . . 3 . . . . 2 . . Database Lockouts . | . . . . . . . . . . . . . . Manual 4 | . . 1 . . 1 2 . . . . . . . Terminals 33 | . 11 2 . . 13 5 . 1 . . 1 . . Fabricators 4 | . . . . . . 2 . . . . 2 . . Repair Stations . | . . . . . . . . . . . . . . Recycling Units 1 | . . . . . . 1 . . . . . . . Scanalyzers . | . . . . . . . . . . . . . . Garrison Access 1 | . . . . . . . . . . . 1 . . Terminal Hacks 52 | . 7 2 2 . 11 . . 1 28 . . 1 . Record 14 | . . . 2 . . . . 1 11 . . . . Part Schematic 7 | . . . . . . . . . 7 . . . . Robot Schematic 7 | . . . . . . . . . 7 . . . . Robot Analysis 1 | . . . . . 1 . . . . . . . . Prototype ID Bank 5 | . 1 . . . 1 . . . 3 . . . . Open Door 2 | . . 1 . . . . . . . . . 1 . Branch Access Points 3 | . 1 . . . 2 . . . . . . . . Terminal Index 1 | . 1 . . . . . . . . . . . . Alert Level 1 | . . . . . 1 . . . . . . . . Unreport Threat 3 | . 2 . . . 1 . . . . . . . . Locate Traps 1 | . . . . . 1 . . . . . . . . Disarm Traps 2 | . . . . . 2 . . . . . . . . Recall Reinforcements 1 | . . . . . 1 . . . . . . . . Hauler Manifests 1 | . 1 . . . . . . . . . . . . Zone Layout 3 | . 1 1 . . 1 . . . . . . . . Fabricator Hacks 1 | . . . . . . 1 . . . . . . . Build 1 | . . . . . . 1 . . . . . . . Repair Station Hacks . | . . . . . . . . . . . . . . Recycling Unit Hacks . | . . . . . . . . . . . . . . Scanalyzer . | . . . . . . . . . . . . . . Garrison Access Hacks . | . . . . . . . . . . . . . . Unauthorized Hacks . | . . . . . . . . . . . . . . Terminals . | . . . . . . . . . . . . . . Fabricators . | . . . . . . . . . . . . . . Repair Stations . | . . . . . . . . . . . . . . Recycling Units . | . . . . . . . . . . . . . . Scanalyzers . | . . . . . . . . . . . . . . Garrison Access . | . . . . . . . . . . . . . . Data Cores Recovered 1 | . . . . . . 1 . . . . . . . Used . | . . . . . . . . . . . . . . Hacking Detections 14 | . 2 1 . . 3 5 . . . . 3 . . Full Trace Events 1 | . 1 . . . . . . . . . . . . Feedback Events . | . . . . . . . . . . . . . . Feedback Blocked . | . . . . . . . . . . . . . . Robot Schematics Acquired 7 | . . . . . . . . . 7 . . . . Robots Built . | . . . . . . . . . . . . . . Matter . | . . . . . . . . . . . . . . Time . | . . . . . . . . . . . . . . Total Robot Build Rating . | . . . . . . . . . . . . . . Part Schematics Acquired 7 | . . . . . . . . . 7 . . . . Parts Built 2 | . . . . . . 2 . . . . . . . Matter 168 | . . . . . . 168 . . . . . . . Time 42 | . . . . . . 42 . . . . . . . Total Part Build Rating 8 | . . . . . . 8 . . . . . . . Parts Repaired . | . . . . . . . . . . . . . . Time . | . . . . . . . . . . . . . . Parts Recycled . | . . . . . . . . . . . . . . Recycled Matter . | . . . . . . . . . . . . . . Retrieved Matter . | . . . . . . . . . . . . . . Retrieved Components . | . . . . . . . . . . . . . . Parts Scanalyzed . | . . . . . . . . . . . . . . Part Schematics Acquired . | . . . . . . . . . . . . . . Parts Damaged . | . . . . . . . . . . . . . . Bothacking | -11 -10 -10 -10 -9 -8 -7 -7 -7 -7 -6 -6 -6 -6 ------------ Run | Scr Mat Min Exi Min Mat Fac Low Low Dat Pro Fac Low Low Used RIF Installer . | . . . . . . . . . . . . . . Robots Hacked . | . . . . . . . . . . . . . . Non-combat . | . . . . . . . . . . . . . . Combat . | . . . . . . . . . . . . . . Robot Hacks Applied . | . . . . . . . . . . . . . . Relay Couplers Released . | . . . . . . . . . . . . . . Robots Rewired 4 | . . . . . . . 2 . . . . . 2 Allies Hacked . | . . . . . . . . . . . . . . Hacks Repelled . | . . . . . . . . . . . . . . Allies | -11 -10 -10 -10 -9 -8 -7 -7 -7 -7 -6 -6 -6 -6 -------- Run | Scr Mat Min Exi Min Mat Fac Low Low Dat Pro Fac Low Low Total Allies 8 | . . . . . . 3 2 . . 1 . . 2 Largest Group 5 | . . . . . . 3 5 5 4 5 1 . 2 Highest-Rated Group 188 | . . . . . . 93 125 125 94 188 23 . 49 Highest-Rated Ally 94 | . . . . . . 31 31 31 31 94 23 . 29 Total Orders 3 | . . 1 . . . . . . . . . . 2 RETURN 3 | . . 1 . . . . . . . . . . 2 Ally Attacks 140 | . . . . . . 7 43 15 . 49 . . 26 Total Damage 2247 | . . . . . . 84 792 228 . 954 . . 189 Kills 21 | . . . . . . 1 8 3 . 7 . . 2 Allies Corrupted . | . . . . . . . . . . . . . . Allies Melted . | . . . . . . . . . . . . . . Intel | -11 -10 -10 -10 -9 -8 -7 -7 -7 -7 -6 -6 -6 -6 ------- Run | Scr Mat Min Exi Min Mat Fac Low Low Dat Pro Fac Low Low Robot Analysis Total 1 | . . . . . 1 . . . . . . . . Derelict Logs Recovered 7 | . . 1 . 2 . . 1 1 . . . 1 1 Drone Launches 10 | . . 1 . . . . . . . . . . 9 Drone Recoveries 10 | . . 1 . . . . . . . . . . 9 Exploration | -11 -10 -10 -10 -9 -8 -7 -7 -7 -7 -6 -6 -6 -6 ------------- Run | Scr Mat Min Exi Min Mat Fac Low Low Dat Pro Fac Low Low Turns Passed 9957 | 114 363 303 705 339 932 850 2426 514 94 1113 614 869 721 Spaces Moved 6711 | 51 254 265 659 267 676 672 1027 426 83 801 486 668 376 Core 34 | 34 . . . . . . . . . . . . . Treads 6 | . . . . . . . . . . . . . 6 Legs 338 | 17 41 . . . . . . . . . . . 280 Wheels 6333 | . 213 265 659 267 676 672 1027 426 83 801 486 668 90 Hover . | . . . . . . . . . . . . . . Flight . | . . . . . . . . . . . . . . Fastest Speed 50 | 50 90 100 100 110 96 100 100 110 110 110 100 97 97 Average Speed 108 | 161 97 100 103 110 97 106 109 110 110 110 103 105 146 Slowest Speed 200 | 200 120 100 110 110 110 110 110 110 110 110 110 110 200 Overloaded Moves . | . . . . . . . . . . . . . . Propulsion Burnouts . | . . . . . . . . . . . . . . Robots Hopped . | . . . . . . . . . . . . . . Cave-ins Triggered . | . . . . . . . . . . . . . . Exploration Rate (%) 53 | 6 51 54 88 65 37 24 71 70 70 68 22 86 41 Regions Visited 13 Branch Regions 9 Pre-discovered Areas 2 | . . . 1 . . . . . 1 . . . . Known Exits Taken 2 | . 1 . . . . . . . . . 1 . . Unknown Exits Taken 11 | 1 . 1 1 1 1 1 1 1 1 1 . 1 . Scrap Searched 16 | . . 1 . 1 . . 2 1 . 1 . 3 7 Spaces Dug 127 | . . . . . . . 1 . . 100 . 26 . Terrain Destroyed 400 | . 10 . . . . 1 17 10 . 146 . 137 79 Melee 1 | . . . . . . . 1 . . . . . . Projectile 3 | . . . . . . 1 . . . 2 . . . AOE 396 | . 10 . . . . . 16 10 . 144 . 137 79 Terrain Rammed . | . . . . . . . . . . . . . . Walls Destroyed . | . . . . . . . . . . . . . . Machines Disabled . | . . . . . . . . . . . . . . Actions | -11 -10 -10 -10 -9 -8 -7 -7 -7 -7 -6 -6 -6 -6 --------- Run | Scr Mat Min Exi Min Mat Fac Low Low Dat Pro Fac Low Low Total 8925 | 82 318 287 681 289 859 784 2307 453 85 931 563 781 505 Wait 1589 | 20 6 6 10 5 81 58 1259 15 3 35 25 51 15 Move 6698 | 50 253 264 658 266 675 671 1026 425 82 800 485 667 376 Hop . | . . . . . . . . . . . . . . Pick Up 85 | 6 10 4 3 4 23 10 . . . 7 6 4 8 Fast Attach 46 | . 4 . . . 5 6 2 2 . 5 3 8 11 Attach 48 | 6 3 1 . . 9 4 . . . 4 3 3 15 Detach 4 | . . . . . . . . . . . . 1 3 Swap 60 | . 2 2 5 2 7 5 6 2 . 13 1 9 6 Drop 92 | . 8 2 4 1 18 12 1 1 . 15 7 10 13 Fire 224 | . 32 8 . 11 41 10 6 8 . 51 16 27 14 Melee 22 | . . . . . . . 1 . . . . . 21 Ram . | . . . . . . . . . . . . . . Kick . | . . . . . . . . . . . . . . Crush . | . . . . . . . . . . . . . . Escape Stasis 24 | . . . . . . 8 . . . . 16 . . Rewire 29 | . . . . . . . 6 . . . . . 23 Trap 4 | . . . 1 . . . . . . 1 1 1 . Miscellaneous . | . . . . . . . . . . . . . . Route ------- -11/Scrapyard -10/Materials (discovered 2 exits: [*Mat] / *Min) -10/Mines (discovered 2 exits: [*Mat] / *Exi) -10/Exiles (discovered 2 exits: [*Min x2]) -9/Mines -8/Materials -7/Factory -7/Lower Caves -7/Lower Caves (discovered 2 exits: *Fac / *Dat) -7/Data Miner -6/Proximity Caves -6/Factory (discovered 2 exits: *Low x2) -6/Lower Caves -6/Lower Caves History --------- Turn | Location | Event 31 | -11/Scrapyard | Discovered new exit (range 16) 115 | -11/Scrapyard | Entered Materials 321 | -10/Materials | Build established: Mutant 433 | -10/Materials | Discovered new exit (range 11) 442 | -10/Materials | Identified exit to Mines 478 | -10/Materials | Entered Mines 563 | -10/Mines | Found the Drone Emporium 568 | -10/Mines | Found Prototype Device 569 | -10/Mines | Identified Thief Drone Bay 693 | -10/Mines | Learned Materials trap positions 717 | -10/Mines | Found a hidden stash of uninstalled traps 740 | -10/Mines | Discovered new exit (range 14) 751 | -10/Mines | Assembled infested the area 763 | -10/Mines | Deemed a non-threat by the Exiles lab entrance 777 | -10/Mines | Discovered new exit (range 5) 781 | -10/Mines | Entered Exiles 795 | -10/Exiles | Discovered new exit (range 15) 818 | -10/Exiles | Met 8R-AWN 832 | -10/Exiles | Met EX-HEX 869 | -10/Exiles | Met EX-BIN 957 | -10/Exiles | Met EX-DEC 973 | -10/Exiles | Learned location of Zion (-6) 1027 | -10/Exiles | Discovered new exit (range 10) 1094 | -10/Exiles | Visited The Gauntlet 1486 | -10/Exiles | Entered Mines 1493 | -9/Mines | Learned Materials stockpile data 1606 | -9/Mines | Found a damaged Exp. Sensor Array with a note attached 1609 | -9/Mines | Found Prototype Device 1661 | -9/Mines | Discovered new exit (range 5) 1670 | -9/Mines | Learned Materials stockpile data 1804 | -9/Mines | Identified Exp. Sensor Array 1825 | -9/Mines | Entered Materials 1825 | -8/Materials | Evolved 4 slots: Propulsion x1, Utility x2, Weapon x1 1826 | -8/Materials | Loaded intel: 24 trap records 2125 | -8/Materials | Build established: Gunner 2741 | -8/Materials | Discovered new exit (range 3) 2757 | -8/Materials | Entered Factory 2757 | -7/Factory | Evolved 2 slots: Utility x2 3090 | -7/Factory | Fabricated Gauss Cannon (x2) 3106 | -7/Factory | Allied Derelicts emerged from ambush trap array 3557 | -7/Factory | Discovered new exit (range 6) 3607 | -7/Factory | Entered Lower Caves 3607 | -7/Lower Caves | Accompanied by 3 allies 3641 | -7/Lower Caves | Attracted the attention of an 0b10 outpost 4051 | -7/Lower Caves | Learned location of 1 exit from Factory 5641 | -7/Lower Caves | Found Alien Artifact 5641 | -7/Lower Caves | Identified Core Expander 5641 | -7/Lower Caves | Installed Core Expander, added new Power slot 6019 | -7/Lower Caves | Discovered new exit (range 9) 6033 | -7/Lower Caves | Entered another Lower Caves area 6033 | -7/Lower Caves | Accompanied by 5 allies 6134 | -7/Lower Caves | Discovered new exit (range 4) 6168 | -7/Lower Caves | Learned 4 Factory zone layouts 6525 | -7/Lower Caves | Discovered new exit (range 9) 6547 | -7/Lower Caves | Entered Data Miner 6547 | -7/Data Miner | Accompanied by 4 allies 6547 | -7/Data Miner | Discovered new exit (range 6) 6568 | -7/Data Miner | Met Data Miner 6590 | -7/Data Miner | Learned location of Section 7 (-2) 6590 | -7/Data Miner | Acquired the access code to Warlord's prototype stash 6611 | -7/Data Miner | Received God Mode back door access code from Data Miner 6641 | -7/Data Miner | Entered Proximity Caves 6641 | -6/Proximity Caves | Accompanied by 4 allies 6665 | -6/Proximity Caves | Spotted B-75 Beast 6667 | -6/Proximity Caves | Escorted by Enhanced Grunt 6684 | -6/Proximity Caves | Destroyed B-75 Beast 6824 | -6/Proximity Caves | Attracted the attention of an 0b10 checkpoint 7166 | -6/Proximity Caves | Discovered new exit (range 15) 7467 | -6/Proximity Caves | Found Prototype Launcher 7467 | -6/Proximity Caves | Identified Scatter Rocket Array 7480 | -6/Proximity Caves | Found Scatter Rocket Array 7501 | -6/Proximity Caves | Build established: Scavenger-Mutant 7754 | -6/Proximity Caves | Entered Factory 7754 | -6/Factory | Accompanied by 1 ally 7754 | -6/Factory | Evolved 2 slots: Propulsion x1, Weapon x1 7755 | -6/Factory | Identified exit to Lower Caves 7962 | -6/Factory | Build established: Scavenger-Gunner 8032 | -6/Factory | Garrison activated, responded to threat 8307 | -6/Factory | Spotted B-75 Beast 8368 | -6/Factory | Entered Lower Caves 8687 | -6/Lower Caves | Build established: Scavenger-Mutant 8921 | -6/Lower Caves | Attracted the attention of an 0b10 checkpoint 9070 | -6/Lower Caves | Learned Factory interactive machine intel 9124 | -6/Lower Caves | Encountered a Warlord checkpoint 9132 | -6/Lower Caves | Discovered new exit (range 8) 9237 | -6/Lower Caves | Entered another Lower Caves area 9298 | -6/Lower Caves | Attracted the attention of an 0b10 outpost 9347 | -6/Lower Caves | Destroyed 8 combat bots 9370 | -6/Lower Caves | Core integrity fell below 50% 9384 | -6/Lower Caves | Core integrity fell below 20% 9424 | -6/Lower Caves | Lost 14 parts (2p5n3u4w) 9602 | -6/Lower Caves | Build established: Mutant 9890 | -6/Lower Caves | Learned Factory security intel 9948 | -6/Lower Caves | Build established: Derelict-Gunner 9958 | -6/Lower Caves | Destroyed by H-66 Slayer with Gauss Rifle Last Messages --------------- 09862_ Found 0b10 Decoder Chip [Generic]. 09862_ Found Med. Matter Pod. 09862_ Found Hvy. Rocket Launcher. 09862_ Found 29 Matter. 09865_ Dropped Chainsword. 09866_ Acquired 0b10 Decoder Chip [Generic]. 09867_ Acquired 10 matter. 09890_ Acquired derelict log, extracted data. Data stored: Factory security intel. 09921_ Searching scrap... 09921_ Found Med. Reflective Plating. 09921_ Found Com. Matter Pod. 09921_ Found Mak. Sword. 09921_ Found Arm. Huge Wheel. 09921_ Found 26 Matter. 09924_ Dropped Carbon-fiber Leg. 09925_ Acquired Arm. Huge Wheel. 09927_ Dropped Carbon-fiber Leg. 09928_ Acquired Mak. Sword. 09929_ Acquired 10 matter. Map ----- +----------------------------------------------------+ | ??????????????????????????? ??????????????## | | ??????????????????????????? ??????????????# | | ???????????????????????????? ????????????## | | ???????????????????????????? !????????????# | | ????????????????????????????? !?????????#### ## | | ????????????????????????????? #???????## ## | | ?????????????????????????????? ####???# ## | | ?????????????????????????????? ###?# #### | | ????????????????????????##????# ### # #??# | | ??????????????????????### ?????# ###### ###? | | ??????????????????????# ?????# #???# ## | | ??????????????????????# ###### ###### # | | ??????????????????????# ## | | ???????????????????????# ## | | ????????????????????????# ### | | ????????????????????????# #??# | | ????????????????????????## ## == ##?## | | ????????????????????????## ######= ###?## | | ???????????????????????## ##???#%!#?### | | ??????????????????????## ##??#! ### ## | | ??????????????????????# #??# ## ### | | ??????????????????????# ## #### ## ### | | ??????????????????????# ## # | | ??????????????????????#### # | | ??????????????????###### ####### #### | | ??????????????????# l @ #?????## #??# | | ?????????????????# b # ### #??????# #?# | | ?????????????????# # ###?? #??????## #?# " | | ?????????????????## #???? #???????####?# | | ??????????????????##! ##* ???? ###???????????# | | ???????????????????##??## ?????#?????????????## | | ????????????????????????##h ???????????????????# | | ?????????????????????????? ???????????????????### | | ?????????????????????????? ????????????????????? | | ?????????????????????????? ????????????????????? | | ?????????????????????????? ???????????????????? | | ?????????????????????????? ???????????????????? | | ?????????????????????????? ??????????????????? | | ?????????????????????????? ??????????????????? | | ?????????????????????????? #?????????????????? | | ?????????????????????????? ?????????????????? | | ?????????????????????????? ?????????????????? | | ??????????????????????????? ????????????????? | | ??????????????????????????? ????????????????? | | ??????????????????????????? ?????????????????? | | ???????????????????????????# ????????????????????? | | ?????????????????????????????????????????????????? | | ?????????????????????????????????????????????????? | | ?????????????????????????????????????????????????? | | ?????????????????????????????????????????????????? | +----------------------------------------------------+ Best States ------------- Heat Dissipation 56 Coolant Potential 50 Energy Generation 31 Energy Capacity 520 Matter Stores 300 Matter Capacity 300 Sight Range 22 Terrain Scan Range 20 Terrain Scan Density 10 Armor Coverage 225 Core Shielding 20 Propulsion Shielding 66 Weapon Shielding 66 Evasion (%) 42 Targeting Accuracy 8 Recoil Reduction 1 Matter Filtering 30 Energy Filtering 50 Kinecelleration 30 Item Schematics ----------------- Combat Drone Bay | -7/Data Miner | Free Lgt. Regenerative Plating | -7/Data Miner | Free Cmb. Gravmag System | -7/Data Miner | Free Triangulator | -7/Data Miner | Free Exp. Terrain Scan Processor | -7/Data Miner | Free Exp. ECM Suite | -7/Data Miner | Free Mni. Smartbomb Launcher | -7/Data Miner | Free Robot Schematics ------------------ S-27 Virus | -7/Data Miner | Free G-50 Soldier | -7/Data Miner | Free G-67 Veteran | -7/Data Miner | Free L-41 Fighter | -7/Data Miner | Free X-72 Disruptor | -7/Data Miner | Free H-66 Slayer | -7/Data Miner | Free I-36 Angel | -7/Data Miner | Free Fabricated ------------ Gauss Cannon | x2 | -7/Factory | Preloaded Alien Tech Used ----------------- Core Expander Achievements -------------- None Challenges ------------ None Game ------ Seed LargeAutogunKinecellerator Manual? 0 Play Time 01:42:29 Cumulative 123.9 hours Start 2021.04.23 @ 12:31:43 End 2021.04.23 @ 14:31:20 Sessions 3 Manual Loads 0 Difficulty Rogue Special Mode None Game No. 49 Rogue 49 Adventurer 0 Explorer 0 Win Type - Total 2 Types 2/0/0/0/0/0/0/0/0 Lore% 55 Gallery% 65 Achievement% 51 Wizard Run 0 Options --------- ASCII 0 Keyboard 0 Movement Mouse Keybinds 0 Fullscreen 2 Font 12/Smallcaps Map View 83x54 Tactical HUD 1 Map Filters NONE Filters NONE Steam X RUN: 8c36c44f-8b7c-49db-94a8-daf11da5d45a